bitfinex-derivatives/quotes_SOLF0:USTF0_20241105
["timestamp","ask_amount","ask_price","bid_price","bid_amount"]
[1730848305363,11.49389305,167.0,166.91,17.14209305]
[1730848305767,11.49389305,167.0,166.93,2.9952]
[1730848306060,11.49389305,167.0,166.91,17.14209305]
[1730848307261,11.49389305,167.0,166.94,2.9951]
[1730848307971,11.49389305,167.0,166.92,2.9955]
[1730848308178,11.49389305,167.0,166.91,5.6482]
[1730848308367,14.59389305,167.0,166.91,5.6482]
[1730848308670,14.59389305,167.0,166.93,2.9953]
[1730848310968,14.59389305,167.0,166.91,5.6482]
[1730848311166,14.59389305,167.0,166.94,2.995]
[1730848312466,14.59389305,167.0,166.93,2.9953]
[1730848314467,14.59389305,167.0,166.94,2.9952]
[1730848314979,14.59389305,167.02,166.91,14.04209305]
[1730848315277,3.1,167.01,166.94,2.9951]
[1730848315474,3.1,167.01,166.91,14.04209305]
[1730848315670,11.49389305,166.97,166.94,2.995]
[1730848315874,14.59389305,166.97,166.85,12.86519305]
[1730848316271,14.59389305,166.97,166.89,2.9959]
[1730848316572,11.49389305,166.94,166.85,12.86519305]
[1730848316775,11.49389305,166.94,166.89,2.9961]
[1730848317275,11.49389305,166.94,166.88,2.9961]
[1730848317467,11.49389305,166.94,166.85,12.86519305]
[1730848317971,11.49389305,166.94,166.89,2.9961]
[1730848318571,11.49389305,166.94,166.85,12.86519305]
[1730848318881,11.49389305,166.94,166.9,2.9958]
[1730848319470,14.59389305,166.97,166.9,2.9958]
[1730848319969,11.49389305,166.95,166.88,2.9963]
[1730848321681,11.49389305,166.95,166.89,2.9961]
[1730848322581,11.49389305,166.95,166.85,15.96519305]
[1730848322582,11.49389305,166.95,166.9,2.9959]
[1730848323786,11.49389305,166.95,166.85,15.96519305]
[1730848323983,11.49389305,166.95,166.91,2.9957]
[1730848324371,11.49389305,166.99,166.92,2.9955]
[1730848324582,11.49389305,166.99,166.9,11.49389305]
[1730848325277,11.49389305,166.97,166.91,2.9956]
[1730848325478,11.49389305,166.95,166.88,3.1]
[1730848325981,11.49389305,166.95,166.89,2.996]
[1730848326181,11.49389305,166.95,166.88,3.1]
[1730848326481,11.49389305,166.93,166.85,1.3713]
[1730848326888,3.1,166.92,166.85,4.368]
[1730848327085,3.1,166.92,166.85,1.3713]
[1730848327587,3.1,166.92,166.86,2.9966]
[1730848328688,3.1,166.92,166.85,1.3713]
[1730848328889,11.49389305,166.91,166.85,1.3713]
[1730848329290,11.49389305,166.91,166.84,2.997]
[1730848329782,11.49389305,166.91,166.83,2.66]
[1730848329990,11.49389305,166.91,166.85,2.9968]
[1730848330587,11.49389305,166.91,166.83,4.3564]
[1730848330789,11.49389305,166.91,166.83,1.3593]
[1730848332391,11.49389305,166.93,166.83,12.85319305]
[1730848332789,3.1,166.94,166.88,2.9961]
[1730848332985,11.49389305,166.95,166.85,14.59389305]
[1730848333289,3.1,166.96,166.92,2.9954]
[1730848333497,11.49389305,166.97,166.87,11.49389305]
[1730848333698,14.59389305,166.99,166.9,11.49389305]
[1730848333885,11.49389305,167.01,166.95,2.9949]
[1730848334201,1.01855261,167.0,166.95,2.9949]
[1730848334390,1.01855261,167.0,166.92,11.49389305]
[1730848334391,1.01855261,167.0,166.96,2.9948]
[1730848334605,1.01855261,167.0,166.92,11.49389305]
[1730848334887,11.49389305,166.99,166.91,1.2542]
[1730848335491,11.49389305,166.99,166.93,2.9952]
[1730848335686,11.49389305,166.97,166.91,1.2542]
[1730848336293,11.49389305,166.97,166.92,2.9955]
[1730848337595,11.49389305,166.97,166.9,2.9958]
[1730848337799,14.59389305,166.97,166.9,2.9958]
[1730848337987,14.59389305,166.97,166.87,11.49389305]
[1730848339305,14.59389305,166.97,166.9,2.9958]
[1730848339797,14.59389305,166.97,166.86,4.4824]
[1730848339798,11.49389305,166.95,166.89,2.9959]
[1730848339993,11.49389305,166.95,166.86,4.4824]
[1730848341295,11.49389305,166.95,166.9,2.9959]
[1730848341594,11.49389305,166.93,166.86,1.3824]
[1730848341801,14.59389305,166.93,166.86,1.3824]
[1730848342009,10.32712796,166.99,166.86,1.3824]
[1730848342202,4.11862793,166.98,166.88,11.49389305]
[1730848342392,3.1,166.98,166.93,2.9952]
[1730848342592,3.1,166.98,166.88,14.59389305]
[1730848343101,3.1,166.98,166.92,2.9954]
[1730848343401,3.1,166.98,166.88,14.59389305]
[1730848343606,3.1,166.98,166.93,2.9952]
[1730848343900,3.1,166.98,166.9,11.49389305]
[1730848344999,3.1,166.98,166.92,2.9954]
[1730848345205,3.1,166.98,166.9,11.49389305]
[1730848345706,11.49389305,166.99,166.9,11.49389305]
[1730848346101,3.1,167.0,166.9,11.49389305]
[1730848346308,3.1,167.0,166.91,1.3326]
[1730848346702,67.20304006,167.02,166.92,15.90539305]
[1730848346703,70.30304006,167.02,166.92,15.90539305]
[1730848346901,70.30304006,167.02,166.93,1.3597]
[1730848347305,10.35248852,167.01,166.98,2.9945]
[1730848347798,70.30304006,167.02,166.93,1.3597]
[1730848349305,70.30304006,167.02,166.96,2.9948]
[1730848349503,10.35269934,167.01,166.93,1.3597]
[1730848350103,11.49389305,166.99,166.92,1.3115]
[1730848350305,10.35269934,167.01,166.79,5.9955]
[1730848350306,11.49389305,166.97,166.89,3.1]
[1730848350608,11.49389305,166.95,166.87,3.1]
[1730848351210,11.49389305,166.95,166.9,2.9959]
[1730848353107,11.49389305,166.95,166.89,2.996]
[1730848353309,14.59389305,166.98,166.88,12.81969305]
[1730848353609,3.1,166.98,166.9,11.49389305]
[1730848354716,3.1,166.98,166.88,2.6097]
[1730848354717,13.45269934,167.01,166.92,11.49389305]
[1730848354909,13.45269934,167.01,166.93,1.38]
[1730848356303,13.45269934,167.01,166.96,2.9948]
[1730848356505,3.1,167.01,166.96,2.9948]
[1730848357018,11.49389305,167.0,166.94,2.9952]
[1730848357512,11.49389305,167.0,166.95,2.995]
[1730848357708,11.49389305,167.0,166.93,1.38]
[1730848358110,11.49389305,167.0,166.91,3.1]
[1730848358111,11.49389305,166.98,166.91,6.0956]
[1730848358315,11.49389305,166.98,166.91,3.1]
[1730848358914,11.49389305,167.0,166.94,2.9951]
[1730848359520,11.49389305,167.0,166.91,3.1]
[1730848359521,11.49389305,167.0,166.93,2.9953]
[1730848360020,11.49389305,167.0,166.91,3.1]
[1730848360721,11.49389305,167.0,166.92,2.9954]
[1730848361224,11.49389305,167.0,166.94,2.9951]
[1730848361415,13.45567622,167.01,166.92,11.49389305]
[1730848361921,13.45567622,167.01,166.94,2.995]
[1730848362317,13.45567622,167.01,166.95,2.995]
[1730848363714,3.1,167.01,166.92,11.49389305]
[1730848364014,11.49389305,167.0,166.91,3.1]
[1730848364616,11.49389305,167.0,166.94,2.9951]
[1730848365122,11.49389305,167.0,166.92,2.9954]
[1730848365309,11.49389305,167.0,166.91,3.1]
[1730848365820,11.49389305,167.0,166.93,2.9953]
[1730848367517,11.49389305,167.0,166.92,2.9954]
[1730848368309,21.84845832,167.0,166.92,2.9954]
[1730848368511,10.35456527,166.99,166.92,2.9954]
[1730848369112,11.49389305,167.0,166.92,2.9954]
[1730848369310,11.49389305,167.0,166.9,14.59389305]
[1730848370016,3.1,167.01,166.92,2.9955]
[1730848370017,11.49389305,166.98,166.92,2.9955]
[1730848370222,11.49389305,166.98,166.9,3.1]
[1730848370524,11.49389305,166.98,166.89,1.2587]
[1730848370721,3.1,166.97,166.91,2.9957]
[1730848370913,3.1,166.97,166.89,1.2587]
[1730848371318,11.49389305,166.96,166.88,1.3258]
[1730848371821,11.49389305,166.93,166.84,2.6647]
[1730848372018,11.49389305,166.89,166.8,4.4628]
[1730848372425,3.1,166.93,166.84,11.49389305]
[1730848373323,11.49389305,166.92,166.86,2.9966]
[1730848374721,11.49389305,166.92,166.82,14.59389305]
[1730848374926,11.49389305,166.92,166.84,2.9968]
[1730848375534,11.49389305,166.9,166.84,2.9968]
[1730848376022,11.49389305,166.9,166.82,11.49389305]
[1730848376023,11.49389305,166.9,166.85,2.9968]
[1730848377729,11.49389305,166.9,166.86,2.9966]
[1730848377925,11.49389305,166.9,166.82,12.78349305]
[1730848378735,11.49389305,166.9,166.85,2.9967]
[1730848379830,11.49389305,166.9,166.86,2.9966]
[1730848380019,14.59389305,166.93,166.82,12.78349305]
[1730848380219,11.49389305,166.93,166.84,11.49389305]
[1730848380425,14.63389305,166.93,166.84,11.49389305]
[1730848381028,14.63389305,166.93,166.89,2.9959]
[1730848382126,14.63389305,166.93,166.87,2.9963]
[1730848382327,11.49389305,166.91,166.82,1.2896]
[1730848382528,11.49389305,166.89,166.8,1.3628]
[1730848382730,11.49389305,166.86,166.8,1.3628]
[1730848384225,11.49389305,166.86,166.77,1.3105]
[1730848384426,11.49389305,166.84,166.76,1.2943]
[1730848384632,14.63389305,166.84,166.77,2.9981]
[1730848384824,14.63389305,166.84,166.76,1.2943]
[1730848386232,14.63389305,166.84,166.78,2.998]
[1730848387031,14.63389305,166.84,166.76,1.2943]
[1730848387636,14.63389305,166.84,166.79,2.9978]
[1730848387830,14.63389305,166.84,166.76,1.2943]
[1730848388738,14.63389305,166.84,166.79,2.9978]
[1730848389740,14.63389305,166.84,166.8,2.9977]
[1730848390541,3.14,166.84,166.81,2.9974]
[1730848390743,11.49389305,166.86,166.81,2.9974]
[1730848390931,3.14,166.85,166.81,2.9974]
[1730848392336,14.63389305,166.86,166.77,1.3866]
[1730848392548,3.14,166.86,166.78,11.49389305]
[1730848392841,14.63389305,166.88,166.82,2.9972]
[1730848393934,14.63389305,166.88,166.78,11.49389305]
[1730848394939,14.63389305,166.88,166.83,2.9971]
[1730848395336,14.63389305,166.88,166.82,2.9973]
[1730848397954,14.63389305,166.88,166.78,11.49389305]
[1730848398145,11.49389305,166.86,166.78,11.49389305]
[1730848398748,11.49389305,166.86,166.83,2.997]
[1730848398955,11.49389305,166.86,166.78,11.49389305]
[1730848399153,11.49389305,166.86,166.82,2.9972]
[1730848401949,11.49389305,166.86,166.83,2.9972]
[1730848402845,14.63389305,166.88,166.84,2.9969]
[1730848403042,14.63389305,166.88,166.78,11.49389305]
[1730848403751,14.63389305,166.88,166.83,2.9971]
[1730848405250,14.63389305,166.88,166.82,2.9973]
[1730848405559,11.49389305,166.86,166.77,4.5266]
[1730848406453,3.14,166.88,166.77,4.5266]
[1730848406454,11.49389305,166.84,166.77,1.3866]
[1730848407151,11.49389305,166.84,166.78,2.9979]
[1730848407351,3.14,166.88,166.78,2.9979]
[1730848407352,7.3699754,166.82,166.78,2.9979]
[1730848409155,7.3699754,166.82,166.77,8.7565754]
[1730848409354,7.3699754,166.82,166.79,2.9979]
[1730848409657,7.3699754,166.84,166.79,7.3699754]
[1730848409859,7.3699754,166.82,166.77,8.7565754]
[1730848410555,7.3699754,166.82,166.79,2.9977]
[1730848411153,7.3699754,166.82,166.8,2.9977]
[1730848411354,7.3699754,166.84,166.79,7.3699754]
[1730848412257,7.3699754,166.84,166.8,2.9977]
[1730848415660,7.3699754,166.82,166.8,2.9977]
[1730848415963,7.3699754,166.8,166.78,2.9979]
[1730848419166,7.3699754,166.79,166.76,2.9983]
[1730848419369,3.1,166.84,166.74,1.3872]
[1730848419370,7.3699754,166.77,166.74,1.3872]
[1730848419669,7.3699754,166.77,166.75,2.9986]
[1730848420865,7.3699754,166.75,166.72,1.3416]
[1730848421161,7.3699754,166.77,166.71,7.6015354]
[1730848421356,7.3699754,166.75,166.73,2.9988]
[1730848426470,3.1,166.8,166.72,7.3699754]
[1730848426471,7.3699754,166.77,166.72,7.3699754]
[1730848426969,7.3699754,166.78,166.74,7.3699754]
[1730848427174,10.34848717,166.85,166.69,5.697]
[1730848427175,3.1,166.83,166.69,5.697]
[1730848427476,7.3699754,166.8,166.77,2.9981]
[1730848428180,7.3699754,166.8,166.75,7.3699754]
[1730848428478,7.3699754,166.8,166.78,2.998]
[1730848428673,3.1,166.83,166.77,7.3699754]
[1730848428674,7.3699754,166.82,166.77,7.3699754]
[1730848429671,7.3699754,166.82,166.78,2.998]
[1730848430473,7.3699754,166.82,166.79,2.9979]
[1730848433679,7.3699754,166.82,166.8,2.9975]
[1730848433874,7.3699754,166.82,166.77,7.3699754]
[1730848434273,7.3699754,166.82,166.8,2.9976]
[1730848434877,7.3699754,166.82,166.79,2.9978]
[1730848435183,7.3699754,166.82,166.77,7.3699754]
[1730848435581,7.3699754,166.82,166.8,2.9977]
[1730848437278,7.3699754,166.82,166.77,7.3699754]
[1730848437481,7.3699754,166.79,166.75,2.6366]
[1730848439482,7.3699754,166.79,166.77,2.9981]
[1730848441387,7.3699754,166.79,166.78,2.9981]
[1730848441586,7.3699754,166.8,166.78,2.9981]
[1730848442098,7.3699754,166.82,166.77,7.3699754]
[1730848443081,7.3699754,166.82,166.79,2.9978]
[1730848443883,7.3699754,166.82,166.77,7.3699754]
[1730848444383,7.3699754,166.82,166.78,2.998]
[1730848444578,7.3699754,166.82,166.77,7.3699754]
[1730848444976,7.3699754,166.82,166.8,2.9976]
[1730848447091,7.3699754,166.8,166.75,2.6366]
[1730848447389,7.3699754,166.79,166.75,2.6366]
[1730848448388,7.3699754,166.79,166.78,2.9981]
[1730848452888,7.3699754,166.82,166.77,7.3699754]
[1730848454091,7.3699754,166.82,166.78,2.998]
[1730848455088,7.3699754,166.82,166.79,2.9979]
[1730848455294,7.3699754,166.82,166.77,7.3699754]
[1730848455689,7.3699754,166.82,166.78,2.998]
[1730848456088,3.1,166.84,166.77,7.3699754]
[1730848456286,7.3699754,166.81,166.79,2.9979]
[1730848458396,7.3699754,166.81,166.75,2.6366]
[1730848458598,7.3699754,166.75,166.7,5.96054]
[1730848458894,7.3699754,166.74,166.7,2.96114]
[1730848459099,7.3699754,166.74,166.71,2.9993]
[1730848459899,7.3699754,166.73,166.7,5.96064]
[1730848460690,7.3699754,166.73,166.7,2.96114]
[1730848460898,7.3699754,166.71,166.7,0.27664]
[1730848461400,7.3699754,166.72,166.7,0.27664]
[1730848462290,7.3699754,166.74,166.7,0.27664]
[1730848462603,3.1,166.77,166.7,0.27664]
[1730848462803,7.3699754,166.74,166.72,2.9991]
[1730848463100,7.3699754,166.74,166.7,0.27664]
[1730848463399,7.3699754,166.74,166.57,7.3699754]
[1730848463400,7.3699754,166.7,166.57,7.3699754]
[1730848463694,7.3699754,166.62,166.58,2.6828]
[1730848463903,7.3699754,166.62,166.6,3.0013]
[1730848464501,7.3699754,166.62,166.58,1.3901]
[1730848466099,7.3699754,166.62,166.59,3.0013]
[1730848466493,7.3699754,166.62,166.6,0.3862]
[1730848466689,7.3699754,166.61,166.6,0.3862]
[1730848467604,7.3699754,166.62,166.6,0.3862]
[1730848467800,7.3699754,166.62,166.6,3.3873]
[1730848468106,7.3699754,166.62,166.6,0.3862]
[1730848468597,7.3699754,166.62,166.61,3.0011]
[1730848470997,3.1,166.67,166.61,3.0011]
[1730848470998,7.3699754,166.64,166.61,3.0011]
[1730848471199,7.3699754,166.64,166.6,0.3862]
[1730848471399,55.80858473,166.72,166.6,0.3862]
[1730848471694,7.3699754,166.65,166.6,0.3862]
[1730848472094,7.3699754,166.65,166.63,3.0006]
[1730848472698,7.3699754,166.64,166.63,3.0006]
[1730848473603,7.3699754,166.64,166.6,0.3862]
[1730848475301,7.3699754,166.64,166.63,3.0008]
[1730848477412,7.3699754,166.66,166.65,3.0003]
[1730848478507,55.80858473,166.72,166.64,7.3699754]
[1730848478813,55.80858473,166.72,166.68,7.3699754]
[1730848478814,7.3699754,166.72,166.68,7.3699754]
[1730848480211,7.3699754,166.72,166.71,2.9993]
[1730848480611,3.1,166.76,166.69,7.3699754]
[1730848480806,7.3699754,166.76,166.71,7.3699754]
[1730848481009,7.3699754,166.76,166.72,7.3699754]
[1730848481908,7.3699754,166.78,166.72,7.3699754]
[1730848482716,7.3699754,166.76,166.75,2.9985]
[1730848483016,7.3699754,166.75,166.68,3.1]
[1730848483208,7.3699754,166.75,166.73,2.9988]
[1730848483808,7.3699754,166.75,166.7,7.3699754]
[1730848485117,7.3699754,166.75,166.74,2.9988]
[1730848485614,7.3699754,166.76,166.71,7.3699754]
[1730848486003,7.3699754,166.76,166.75,2.9986]
[1730848486716,3.02854915,166.87,166.74,7.3699754]
[1730848486915,1.01954405,166.86,166.74,7.3699754]
[1730848487214,7.3699754,166.8,166.76,7.3699754]
[1730848487409,11.51838909,166.82,166.73,3.962]
[1730848487817,11.51838909,166.82,166.78,2.9979]
[1730848488018,11.51838909,166.82,166.73,3.962]
[1730848489413,11.51838909,166.82,166.78,2.9979]
[1730848489812,11.51838909,166.8,166.73,3.962]
[1730848490011,11.51838909,166.8,166.76,2.9984]
[1730848490926,11.51838909,166.78,166.75,2.9985]
[1730848491708,11.51838909,166.78,166.72,2.999]
[1730848491919,11.51838909,166.75,166.72,2.999]
[1730848492218,11.51838909,166.75,166.7,3.1]
[1730848492610,11.51838909,166.75,166.73,2.9988]
[1730848493513,11.51838909,166.78,166.74,2.9988]
[1730848493710,14.61838909,166.8,166.7,14.61838909]
[1730848494219,14.61838909,166.8,166.76,2.9984]
[1730848494614,11.51838909,166.8,166.77,2.9982]
[1730848495323,11.51838909,166.8,166.7,14.61838909]
[1730848495526,11.51838909,166.8,166.76,2.9984]
[1730848495913,11.51838909,166.8,166.7,14.61838909]
[1730848496616,11.51838909,166.8,166.75,2.9986]
[1730848497220,11.51838909,166.8,166.76,2.9984]
[1730848500526,11.51838909,166.8,166.66,2.5964]
[1730848500527,11.51838909,166.82,166.74,14.61838909]
[1730848500822,14.61838909,166.84,166.75,2.66]
[1730848501028,11.51838909,166.84,166.78,2.9979]
[1730848501419,11.51838909,166.82,166.75,2.66]
[1730848501624,11.51838909,166.8,166.77,2.9982]
[1730848502028,11.51838909,166.82,166.78,2.998]
[1730848502224,11.51838909,166.82,166.74,3.1]
[1730848502529,11.51838909,166.82,166.78,2.9981]
[1730848502927,3.1,166.85,166.74,3.1]
[1730848502928,11.51838909,166.8,166.74,3.1]
[1730848503227,11.51838909,166.78,166.69,2.6072]
[1730848503524,11.51838909,166.76,166.69,1.3405]
[1730848504324,3.1,166.79,166.69,1.3405]
[1730848504522,3.1,166.79,166.65,11.51838909]
[1730848504523,11.51838909,166.71,166.65,3.1]
[1730848505125,11.51838909,166.71,166.67,3.0]
[1730848505833,11.51838909,166.71,166.65,3.1]
[1730848506137,11.51838909,166.74,166.65,14.61838909]
[1730848506625,11.51838909,166.74,166.69,2.9995]
[1730848506827,11.51838909,166.74,166.65,14.61838909]
[1730848507029,11.51838909,166.74,166.69,2.9996]
[1730848507229,11.51838909,166.74,166.65,14.61838909]
[1730848507629,11.51838909,166.74,166.71,2.9993]
[1730848509436,3.1,166.75,166.71,2.9993]
[1730848509828,11.51838909,166.76,166.71,2.9993]
[1730848512528,11.51838909,166.76,166.72,2.9991]
[1730848513437,11.51838909,166.76,166.71,2.9993]
[1730848514537,11.51838909,166.74,166.64,1.373]
[1730848514732,11.51838909,166.71,166.64,1.373]
[1730848514929,11.51838909,166.71,166.64,4.473]
[1730848515537,11.51838909,166.71,166.67,2.9999]
[1730848516034,11.51838909,166.71,166.66,3.0001]
[1730848517039,11.51838909,166.69,166.65,3.0003]
[1730848517242,11.51838909,166.69,166.63,1.2667]
[1730848519335,11.51838909,166.69,166.65,3.0004]
[1730848519743,3.1,166.73,166.67,3.0]
[1730848519937,11.51838909,166.72,166.63,1.2667]
[1730848520645,11.51838909,166.72,166.66,3.0002]
[1730848520846,3.1,166.71,166.66,3.0002]
[1730848521440,11.51838909,166.69,166.64,3.0006]
[1730848525442,11.51838909,166.65,166.51,6.0059]
[1730848525650,3.1,166.64,166.55,12.79268909]
[1730848526041,3.1,166.67,166.59,11.51838909]
[1730848526246,3.1,166.68,166.6,1.3277]
[1730848526543,3.1,166.68,166.64,3.0004]
[1730848526745,11.51838909,166.7,166.61,1.2743]
[1730848526946,3.1,166.69,166.61,1.2743]
[1730848527148,11.51838909,166.72,166.61,12.79268909]
[1730848527353,3.1,166.71,166.61,12.79268909]
[1730848527739,3.1,166.71,166.66,3.0001]
[1730848528249,3.1,166.71,166.61,12.79268909]
[1730848528837,3.1,166.71,166.66,3.0001]
[1730848531556,11.51838909,166.7,166.61,1.2743]
[1730848532056,11.51838909,166.7,166.65,3.0003]
[1730848532849,11.51838909,166.7,166.61,1.2743]
[1730848532850,11.51838909,166.7,166.64,3.0005]
[1730848533048,11.51838909,166.65,166.6,1.3277]
[1730848533253,14.61838909,166.65,166.6,1.3277]
[1730848533451,14.61838909,166.65,166.6,3.0012]
[1730848534244,14.61838909,166.65,166.58,3.0017]
[1730848534454,14.61838909,166.65,166.55,5.6437]
[1730848535256,14.61838909,166.65,166.61,3.001]
[1730848536341,14.61838909,166.65,166.62,3.0009]
[1730848536948,14.61838909,166.65,166.55,5.6437]
[1730848537148,14.61838909,166.65,166.57,11.51838909]
[1730848537649,3.1,166.65,166.57,11.51838909]
[1730848538255,3.1,166.65,166.62,3.0008]
[1730848539153,3.1,166.66,166.63,3.0008]
[1730848539356,3.1,166.66,166.58,1.2622]
[1730848539950,3.1,166.66,166.63,3.0006]
[1730848540150,11.51838909,166.67,166.59,11.51838909]
[1730848540550,11.51838909,166.67,166.64,3.0004]
[1730848541756,3.1,166.68,166.66,3.0001]
[1730848544758,14.61838909,166.69,166.66,3.0001]
[1730848544956,14.61838909,166.69,166.59,14.61838909]
[1730848545155,14.61838909,166.69,166.67,2.9999]
[1730848545956,11.51838909,166.69,166.67,2.9999]
[1730848547160,11.51838909,166.74,166.7,2.9994]
[1730848547361,11.51838909,166.74,166.65,1.3346]
[1730848548055,11.51838909,166.74,166.69,2.9996]
[1730848549456,11.51838909,166.74,166.7,2.9995]
[1730848551462,7.37003269,166.71,166.7,2.9995]
[1730848551956,7.37003269,166.71,166.69,2.9996]
[1730848553366,7.37003269,166.7,166.65,8.70463269]
[1730848554558,7.37003269,166.68,166.65,1.3346]
[1730848556152,7.37003269,166.68,166.67,3.0]
[1730848557861,7.37003269,166.68,166.66,3.0002]
[1730848559370,7.37003269,166.67,166.63,3.0006]
[1730848559565,7.37003269,166.65,166.63,3.0006]
[1730848559761,7.37003269,166.63,166.59,1.3239]
[1730848560463,7.37003269,166.63,166.61,3.001]
[1730848560970,7.37003269,166.63,166.59,1.3239]
[1730848561170,7.37003269,166.63,166.61,3.0011]
[1730848561764,7.37003269,166.63,166.59,1.3239]
[1730848561765,7.37003269,166.62,166.59,1.3239]
[1730848562173,7.37003269,166.62,166.6,3.0011]
[1730848564173,7.37003269,166.62,166.56,3.1]
[1730848564174,7.37003269,166.6,166.58,3.0016]
[1730848564371,7.37003269,166.6,166.56,7.37003269]
[1730848564777,7.37003269,166.6,166.59,3.0015]
[1730848564974,7.37003269,166.62,166.58,7.37003269]
[1730848565372,7.37003269,166.63,166.61,3.0011]
[1730848565763,7.37003269,166.65,166.59,7.37003269]
[1730848565964,7.37003269,166.65,166.62,3.0009]
[1730848566679,7.37003269,166.63,166.59,1.258]
[1730848566977,7.37003269,166.63,166.59,8.62803269]
[1730848567475,7.37003269,166.63,166.59,1.258]
[1730848567670,7.37003269,166.62,166.59,1.258]
[1730848568075,7.37003269,166.62,166.57,7.37003269]
[1730848568870,7.37003269,166.62,166.58,3.0015]
[1730848569071,7.37003269,166.62,166.57,7.37003269]
[1730848570073,7.37003269,166.63,166.58,7.37003269]
[1730848570479,7.37003269,166.63,166.59,3.0014]
[1730848570788,7.37003269,166.62,166.59,3.0014]
[1730848571391,11.52911626,166.64,166.59,3.0014]
[1730848573391,11.52911626,166.64,166.55,5.7137]
[1730848573785,11.52911626,166.66,166.56,11.52911626]
[1730848574194,11.52911626,166.66,166.6,3.0012]
[1730848574487,11.52911626,166.66,166.56,11.52911626]
[1730848575795,11.52911626,166.66,166.61,3.001]
[1730848575996,11.52911626,166.66,166.56,11.52911626]
[1730848576689,11.52911626,166.66,166.6,3.0012]
[1730848578588,11.52911626,166.66,166.61,3.0011]
[1730848579786,11.52911626,166.66,166.56,11.52911626]
[1730848580097,11.52911626,166.69,166.61,11.52911626]
[1730848580298,11.52911626,166.69,166.62,2.6447]
[1730848580703,11.52911626,166.71,166.62,2.6447]
[1730848580889,11.52911626,166.71,166.63,12.91071626]
[1730848581396,3.1,166.72,166.63,12.91071626]
[1730848581600,3.1,166.72,166.64,3.1]
[1730848581787,3.1,166.72,166.63,12.91071626]
[1730848582095,3.1,166.72,166.64,3.1]
[1730848582700,14.62911626,166.75,166.65,11.52911626]
[1730848582998,11.52911626,166.73,166.65,11.52911626]
[1730848583195,11.52911626,166.73,166.64,3.1]
[1730848583595,11.52911626,166.73,166.68,2.9997]
[1730848584393,11.52911626,166.73,166.64,3.1]
[1730848584394,11.52911626,166.73,166.69,2.9995]
[1730848590902,11.52911626,166.69,166.63,343.0]
[1730848591089,11.52911626,166.66,166.63,343.0]
[1730848591293,11.52911626,166.66,166.58,2.5558]
[1730848591895,11.52911626,166.66,166.61,3.0009]
[1730848592104,11.52911626,166.66,166.58,2.5558]
[1730848592892,11.52911626,166.66,166.6,3.0012]
[1730848593109,11.52911626,166.66,166.58,2.5558]
[1730848593806,11.52911626,166.66,166.61,3.001]
[1730848594705,11.52911626,166.66,166.62,3.0009]
[1730848595302,7.37622916,166.64,166.62,3.0009]
[1730848599206,7.37622916,166.63,166.58,2.5558]
[1730848599395,7.37622916,166.6,166.58,1.2662]
[1730848599596,7.37622916,166.62,166.58,1.2662]
[1730848599806,7.37622916,166.62,166.59,3.0014]
[1730848600107,7.37622916,166.62,166.58,1.2662]
[1730848600500,7.37622916,166.62,166.58,4.2677]
[1730848601007,7.37622916,166.6,166.58,4.2677]
[1730848603806,7.37622916,166.6,166.58,1.2662]
[1730848604001,7.37622916,166.6,166.59,3.0015]
[1730848604406,7.37622916,166.6,166.58,1.2662]
[1730848605106,7.37622916,166.6,166.59,3.0015]
[1730848605305,7.37622916,166.6,166.55,8.92062916]
[1730848605610,7.37622916,166.6,166.57,3.0018]
[1730848608810,7.37622916,166.6,166.55,8.92062916]
[1730848609613,7.37622916,166.6,166.55,8.70782916]
[1730848609814,31.4735962,166.69,166.55,8.70782916]
[1730848609815,10.84998177,166.68,166.61,3.0011]
[1730848610014,7.37622916,166.62,166.61,3.0011]
[1730848610407,7.37622916,166.62,166.6,3.0011]
[1730848611112,7.37622916,166.62,166.61,3.0011]
[1730848615613,3.1,166.66,166.58,7.37622916]
[1730848615813,7.37622916,166.63,166.58,7.37622916]
[1730848616422,7.37622916,166.63,166.61,3.001]
[1730848616913,7.37622916,166.65,166.63,3.0007]
[1730848617419,3.1,166.66,166.63,3.0007]
[1730848618415,7.37622916,166.64,166.63,3.0007]
[1730848620315,3.06195965,166.72,166.65,3.0004]